bitfinex-derivatives/quotes_SOLF0:USTF0_20260308
["timestamp","ask_amount","ask_price","bid_price","bid_amount"]
[1772938290203,6.89698627,82.32,82.211,9.83476036]
[1772938290403,2.11471091,82.342,82.221,9.83476036]
[1772938290404,6.89698627,82.33,82.221,9.83476036]
[1772938290604,10.936,82.305,82.221,9.83476036]
[1772938291004,6.89698627,82.34,82.224,9.83392366]
[1772938292000,6.89698627,82.36,82.244,10.05754214]
[1772938292198,2.11489726,82.352,82.244,10.05754214]
[1772938293208,6.89698627,82.36,82.261,10.05725319]
[1772938294206,10.932,82.333,82.261,10.05725319]
[1772938294406,6.89698627,82.36,82.261,10.05725319]
[1772938295005,6.89698627,82.36,82.271,9.99726747]
[1772938295808,10.931,82.345,82.272,9.93129689]
[1772938296208,6.89698627,82.38,82.272,9.93129689]
[1772938296509,6.89698627,82.38,82.19,170.361]
[1772938296510,6.89698627,82.34,82.252,9.93129689]
[1772938296813,6.89698627,82.37,82.271,9.93080295]
[1772938297109,6.89698627,82.37,82.273,9.93080295]
[1772938297506,6.89698627,82.37,82.27,6.89698627]
[1772938297507,10.931,82.345,82.275,9.91059432]
[1772938297705,6.89698627,82.37,82.275,9.91059432]
[1772938298107,10.929,82.355,82.276,10.94]
[1772938298313,124.0,82.44,82.291,9.91059432]
[1772938298504,2.113953,82.392,82.291,9.91059432]
[1772938298913,6.89698627,82.4,82.291,9.91059432]
[1772938299114,2.11356783,82.392,82.291,9.91059432]
[1772938299316,6.89698627,82.4,82.291,9.91059432]
[1772938299608,10.928,82.367,82.297,9.9100594]
[1772938299911,6.89698627,82.4,82.311,9.91249214]
[1772938300111,10.926,82.38,82.311,9.91249214]
[1772938300303,6.89698627,82.4,82.311,9.91249214]
[1772938300502,21.838,82.438,82.311,9.91249214]
[1772938300706,6.89698627,82.42,82.311,9.91249214]
[1772938300912,6.89698627,82.42,82.31,6.89698627]
[1772938300913,10.923,82.402,82.322,9.91197773]
[1772938301413,10.922,82.412,82.335,9.91197773]
[1772938301708,6.89698627,82.44,82.335,9.91197773]
[1772938302016,6.89698627,82.42,82.335,9.91197773]
[1772938303014,6.89698627,82.42,82.315,9.9167872]
[1772938303413,6.89698627,82.42,82.317,9.9167872]
[1772938303814,6.89698627,82.43,82.317,9.9167872]
[1772938304010,10.923,82.404,82.326,9.80847116]
[1772938304714,6.89698627,82.43,82.26,62.0]
[1772938304715,10.922,82.414,82.347,9.80773439]
[1772938304908,6.89698627,82.41,82.307,9.80773439]
[1772938305108,6.89698627,82.41,82.31,9.80773439]
[1772938305809,10.926,82.383,82.311,9.80767184]
[1772938306811,10.926,82.383,82.313,9.80695227]
[1772938307604,10.926,82.383,82.317,9.80695227]
[1772938307807,10.927,82.374,82.317,9.80695227]
[1772938308410,10.927,82.374,82.307,10.936]
[1772938308411,6.89698627,82.43,82.321,9.83528648]
[1772938309005,6.89698627,82.43,82.32,6.89698627]
[1772938309006,6.89698627,82.43,82.327,9.83465019]
[1772938309210,6.89698627,82.43,82.341,9.83465019]
[1772938309413,6.89698627,82.45,82.341,9.83465019]
[1772938310119,2.11254781,82.452,82.301,9.92468771]
[1772938310120,6.89698627,82.41,82.301,9.92468771]
[1772938310721,10.928,82.369,82.301,9.92468771]
[1772938312315,10.929,82.36,82.301,9.92468771]
[1772938313014,6.89698627,82.41,82.301,9.92468771]
[1772938313015,10.927,82.372,82.301,9.92468771]
[1772938313320,6.89698627,82.41,82.301,9.92468771]
[1772938313520,6.89698627,82.39,82.301,9.92468771]
[1772938314421,6.89698627,82.37,82.281,10.02142226]
[1772938315213,10.934,82.321,82.281,10.02142226]
[1772938315415,6.89698627,82.35,82.26,10.02130427]
[1772938315616,6.89698627,82.35,82.241,10.02040317]
[1772938315811,6.89698627,82.33,82.241,10.02040317]
[1772938316622,10.935,82.316,82.241,10.02040317]
[1772938317422,10.935,82.316,82.24,6.89698627]
[1772938317423,6.89698627,82.36,82.245,10.02028665]
[1772938317617,6.89698627,82.34,82.245,10.02028665]
[1772938318122,10.936,82.306,82.245,10.02028665]
[1772938318821,6.89698627,82.36,82.261,10.0316819]
[1772938319021,6.89698627,82.38,82.261,10.0316819]
[1772938319424,6.89698627,82.38,82.281,10.0316819]
[1772938319719,10.929,82.356,82.281,10.0316819]
[1772938319920,6.89698627,82.37,82.281,10.0316819]
[1772938320120,10.933,82.332,82.281,10.0316819]
[1772938320620,6.89698627,82.37,82.281,10.0316819]
[1772938320927,6.89698627,82.41,82.301,10.01626888]
[1772938321224,9.98318382,82.426,82.321,10.01626888]
[1772938321419,6.89698627,82.41,82.321,10.01626888]
[1772938321725,20.58520424,82.435,82.321,10.01626888]
[1772938321927,6.89698627,82.41,82.321,10.01626888]
[1772938322420,9.98318382,82.429,82.321,10.01626888]
[1772938322619,6.87519666,82.41,82.321,10.01626888]
[1772938323014,6.87519666,82.42,82.321,10.01626888]
[1772938323221,6.87519666,82.4,82.321,10.01626888]
[1772938323620,6.87519666,82.4,82.301,9.93390525]
[1772938324016,10.93,82.349,82.301,9.93390525]
[1772938324220,9.98318382,82.399,82.301,9.93390525]
[1772938324420,9.98318382,82.398,82.301,9.93390525]
[1772938324624,9.98318382,82.399,82.301,9.93390525]
[1772938324826,10.93,82.349,82.301,9.93390525]
[1772938325820,10.929,82.359,82.301,9.93390525]
[1772938328526,10.60202042,82.401,82.301,9.93390525]
[1772938328721,10.60202042,82.399,82.301,9.93390525]
[1772938328922,20.39405563,82.398,82.301,9.93390525]
[1772938329124,10.60202042,82.396,82.301,9.93390525]
[1772938329322,10.931,82.343,82.301,9.93390525]
[1772938329526,9.79203521,82.393,82.301,9.93390525]
[1772938329725,9.79203521,82.392,82.28,10.11807917]
[1772938330028,9.79203521,82.391,82.28,10.11807917]
[1772938330227,9.79203521,82.39,82.28,10.11807917]
[1772938330429,10.931,82.347,82.28,10.11807917]
[1772938331026,10.929,82.356,82.28,10.11807917]
[1772938331926,10.929,82.356,82.281,10.12829449]
[1772938332121,14.50786698,82.408,82.281,10.12829449]
[1772938332122,21.85,82.39,82.281,10.12829449]
[1772938332328,9.81417894,82.389,82.281,10.12829449]
[1772938332526,9.81417894,82.388,82.281,10.12829449]
[1772938332728,9.81417894,82.396,82.281,10.12829449]
[1772938332924,9.81417894,82.395,82.281,10.12829449]
[1772938333221,9.81417894,82.394,82.281,10.12829449]
[1772938333433,10.93,82.351,82.286,10.09234793]
[1772938335323,10.931,82.343,82.286,10.09234793]
[1772938335725,14.50786698,82.409,82.286,10.09234793]
[1772938335726,20.93151634,82.382,82.286,10.09234793]
[1772938335922,10.934,82.318,82.286,10.09234793]
[1772938337530,10.933,82.327,82.286,10.09234793]
[1772938338032,21.856,82.369,82.286,10.09234793]
[1772938338033,10.932,82.337,82.286,10.09234793]
[1772938339330,10.933,82.329,82.286,10.09234793]
[1772938340130,10.931,82.341,82.286,10.09234793]
[1772938341425,10.932,82.333,82.286,10.09234793]
[1772938343130,10.933,82.325,82.286,10.09234793]
[1772938344535,21.854,82.374,82.286,10.09234793]
[1772938344736,11.1173374,82.398,82.286,10.09234793]
[1772938345134,10.932,82.336,82.286,10.09234793]
[1772938347141,10.933,82.329,82.286,10.09234793]
[1772938348244,11.1173374,82.4,82.286,10.09234793]
[1772938348437,20.96466202,82.399,82.286,10.09234793]
[1772938348637,9.84732462,82.398,82.286,10.09234793]
[1772938348835,10.93,82.349,82.286,10.09234793]
[1772938349041,9.84732462,82.391,82.286,10.09234793]
[1772938349341,21.85,82.392,82.286,10.09234793]
[1772938350142,10.927,82.37,82.296,10.14819418]
[1772938350343,11.1173374,82.437,82.296,10.14819418]
[1772938350542,10.925,82.391,82.323,10.14833203]
[1772938350837,9.85658142,82.435,82.323,10.14833203]
[1772938351034,9.85658142,82.434,82.323,10.14833203]
[1772938351233,21.00560341,82.433,82.323,10.14833203]
[1772938351432,9.85658142,82.432,82.323,10.14833203]
[1772938351632,11.14902199,82.428,82.323,10.14833203]
[1772938351837,21.00560341,82.427,82.323,10.14833203]
[1772938352037,9.85658142,82.426,82.323,10.14833203]
[1772938352233,10.927,82.375,82.323,10.14833203]
[1772938353045,10.928,82.366,82.323,10.14833203]
[1772938354246,10.928,82.366,82.273,29.9259942]
[1772938354247,9.85658142,82.411,82.295,10.14353333]
[1772938354542,9.85658142,82.41,82.295,10.14353333]
[1772938354742,9.85658142,82.409,82.295,10.14353333]
[1772938354942,9.85658142,82.408,82.295,10.14353333]
[1772938355142,9.85658142,82.407,82.295,10.14353333]
[1772938355344,9.85658142,82.407,82.238,177.0]
[1772938355345,9.85658142,82.406,82.298,10.14365778]
[1772938355540,21.842,82.42,82.349,0.02471794]
[1772938355741,9.86403079,82.419,82.349,0.02471794]
[1772938356042,10.925,82.388,82.349,0.02471794]
[1772938357938,10.926,82.38,82.349,0.02471794]
[1772938358543,9.86175748,82.425,82.349,0.02471794]
[1772938358840,9.86175748,82.424,82.349,0.02471794]
[1772938359041,9.86175748,82.423,82.349,0.02471794]
[1772938359239,9.86175748,82.427,82.349,0.02471794]
[1772938359447,10.926,82.381,82.349,0.02471794]
[1772938359844,9.86175748,82.424,82.349,0.02471794]
[1772938360045,9.86175748,82.423,82.349,0.02471794]
[1772938360240,9.86175748,82.422,82.349,0.02471794]
[1772938360441,169.804,82.461,82.349,0.02471794]
[1772938360442,9.86175748,82.421,82.349,0.02471794]
[1772938360741,9.86175748,82.42,82.349,0.02471794]
[1772938360943,21.843,82.418,82.349,0.02471794]
[1772938361241,9.86175748,82.417,82.349,0.02471794]
[1772938361436,9.86175748,82.416,82.349,0.02471794]
[1772938361640,9.86175748,82.415,82.349,0.02471794]
[1772938361836,9.86175748,82.414,82.349,0.02471794]
[1772938362034,9.86175748,82.413,82.349,0.02471794]
[1772938362240,9.86175748,82.412,82.324,10.07236231]
[1772938362440,9.86175748,82.411,82.324,10.07236231]
[1772938362636,21.01077947,82.41,82.269,10.11831303]
[1772938362837,11.14902199,82.406,82.287,10.11831303]
[1772938363037,9.86175748,82.405,82.287,10.11831303]
[1772938363234,9.86175748,82.404,82.287,10.11831303]
[1772938363542,21.847,82.402,82.293,10.22616611]
[1772938363741,9.86175748,82.401,82.293,10.22616611]
[1772938363941,9.86175748,82.4,82.293,10.22616611]
[1772938364138,9.86175748,82.399,82.293,10.22616611]
[1772938364336,9.86175748,82.398,82.293,10.22616611]
[1772938364533,9.86175748,82.397,82.293,10.22616611]
[1772938364737,10.929,82.359,82.293,10.22616611]
[1772938364941,9.86175748,82.395,82.293,10.22616611]
[1772938365138,9.86175748,82.394,82.293,10.22616611]
[1772938365338,10.931,82.344,82.293,10.22616611]
[1772938365545,9.86175748,82.392,82.293,10.22616611]
[1772938365843,169.876,82.426,82.293,10.22616611]
[1772938365844,11.14902199,82.387,82.293,10.22616611]
[1772938366035,21.852,82.381,82.293,10.22616611]
[1772938366237,9.86175748,82.38,82.293,10.22616611]
[1772938366436,9.86175748,82.379,82.293,10.22616611]
[1772938366641,9.86175748,82.378,82.293,10.22616611]
[1772938366845,9.86175748,82.38,82.293,10.22616611]
[1772938367145,9.86175748,82.379,82.293,10.22616611]
[1772938367345,9.86175748,82.38,82.293,10.22616611]
[1772938367552,9.86175748,82.379,82.293,10.22616611]
[1772938367848,9.86175748,82.38,82.293,10.22616611]
[1772938368147,9.86175748,82.379,82.293,10.22616611]
[1772938368346,9.86175748,82.38,82.293,10.22616611]
[1772938368549,9.86175748,82.379,82.293,10.22616611]
[1772938368737,10.932,82.34,82.293,10.22616611]
[1772938368941,14.50786698,82.406,82.293,10.22616611]
[1772938368942,21.853,82.378,82.293,10.22616611]
[1772938369141,9.86175748,82.377,82.293,10.22616611]
[1772938369743,10.933,82.331,82.293,10.22616611]
[1772938370845,9.24594053,82.376,82.293,10.22616611]
[1772938371347,10.931,82.342,82.293,10.22616611]
[1772938372945,10.932,82.334,82.293,10.22616611]
[1772938373148,9.24594053,82.361,82.293,10.22616611]
[1772938373843,9.24594053,82.347,82.293,10.22616611]
[1772938375149,9.24594053,82.366,82.293,10.22616611]
[1772938379747,10.932,82.338,82.293,10.22616611]
[1772938380242,10.932,82.335,82.293,10.22616611]
[1772938380654,9.24594053,82.352,82.293,10.22616611]
[1772938381249,10.932,82.336,82.293,10.22616611]
[1772938381455,9.24594053,82.352,82.293,10.22616611]
[1772938381951,10.928,82.364,82.303,9.24458286]
[1772938382543,10.929,82.357,82.303,9.24458286]
[1772938382741,9.24594053,82.386,82.308,9.4929768]
[1772938382944,9.77552355,82.412,82.308,9.4929768]
[1772938383144,9.53402513,82.409,82.321,9.4929768]
[1772938383349,9.53402513,82.399,82.321,9.4929768]
[1772938383746,9.53402513,82.378,82.321,9.4929768]
[1772938384750,10.93,82.354,82.321,9.4929768]
[1772938386454,10.931,82.346,82.294,9.4929768]
[1772938386843,9.53402513,82.359,82.26,9.4929768]
[1772938387044,10.934,82.32,82.26,9.4929768]
[1772938387951,9.53402513,82.365,82.271,9.4929768]
[1772938388851,9.53402513,82.348,82.271,9.4929768]
[1772938389651,10.933,82.329,82.272,9.4929768]
[1772938389856,9.53402513,82.348,82.272,9.4929768]
[1772938390857,10.932,82.338,82.275,9.4929768]
[1772938391858,10.932,82.338,82.281,9.4929768]
[1772938392358,10.931,82.347,82.281,9.4929768]
[1772938392557,10.931,82.347,82.283,9.4929768]
[1772938393055,10.932,82.337,82.283,9.4929768]
[1772938393449,21.853,82.379,82.284,9.4929768]
[1772938393650,9.53402513,82.378,82.284,9.4929768]
[1772938394856,10.931,82.346,82.287,9.4929768]
[1772938395755,10.931,82.346,82.289,9.4929768]
[1772938396560,10.931,82.346,82.291,9.4929768]
[1772938397159,10.93,82.354,82.294,9.4929768]
[1772938398855,10.931,82.346,82.297,9.4929768]
[1772938401356,9.53402513,82.338,82.282,9.4929768]
[1772938402858,10.935,82.317,82.282,9.4929768]
[1772938403358,9.53402513,82.338,82.282,9.4929768]
[1772938404162,10.932,82.339,82.282,9.4929768]
[1772938404559,9.53402513,82.353,82.282,9.4929768]
[1772938404860,10.93,82.351,82.296,9.4929768]
[1772938405856,10.93,82.351,82.298,9.4929768]
[1772938406756,20.46402513,82.351,82.298,9.4929768]
[1772938407355,10.931,82.346,82.298,9.4929768]
[1772938407963,10.93,82.354,82.298,9.4929768]
[1772938408660,10.931,82.347,82.298,9.4929768]
[1772938409562,10.931,82.347,82.299,9.4929768]
[1772938409758,10.929,82.356,82.299,9.4929768]
[1772938409959,9.53402513,82.365,82.299,9.4929768]
[1772938410563,9.53402513,82.359,82.301,9.4929768]
[1772938410764,10.93,82.348,82.301,9.4929768]
[1772938412058,10.93,82.348,82.27,62.0]
[1772938412059,9.53402513,82.375,82.32,12.2457515]
[1772938412566,10.21368774,82.369,82.32,12.2457515]
[1772938412958,10.93,82.351,82.31,2.7527747]
[1772938413259,10.21368774,82.349,82.298,10.24169632]
[1772938413560,10.21368774,82.349,82.29,2.7527747]
[1772938414564,10.21368774,82.359,82.301,10.24169632]
[1772938415766,10.931,82.346,82.301,10.24169632]
[1772938416460,10.93,82.354,82.31,2.7527747]
[1772938417467,10.929,82.362,82.32,2.7527747]
[1772938417662,10.21368774,82.369,82.32,2.7527747]
[1772938418156,10.21368774,82.369,82.321,10.24169632]
[1772938418960,10.21368774,82.369,82.31,2.7527747]
[1772938419363,10.928,82.365,82.311,10.24169632]
[1772938419570,10.928,82.365,82.321,10.24169632]
[1772938420067,10.927,82.373,82.331,10.24169632]
[1772938422170,10.928,82.366,82.33,2.7527747]
[1772938422470,10.928,82.366,82.315,10.24169632]
[1772938422471,21.14168774,82.366,82.32,2.7527747]
[1772938423270,10.927,82.375,82.33,12.99447102]
[1772938423573,10.927,82.375,82.331,10.24169632]
[1772938424466,10.21368774,82.382,82.34,2.7527747]
[1772938425168,10.926,82.381,82.34,2.7527747]
[1772938425363,10.926,82.381,82.331,10.24169632]
[1772938426671,10.21368774,82.396,82.331,10.24169632]
[1772938426868,10.21368774,82.41,82.331,10.24169632]
[1772938427871,10.924,82.399,82.351,10.24169632]
[1772938429475,10.21368774,82.41,82.351,10.24169632]
[1772938429476,10.925,82.391,82.351,10.24169632]
[1772938429974,10.925,82.393,82.351,10.24169632]
[1772938430573,10.21368774,82.375,82.311,10.24169632]
[1772938430773,10.21368774,82.395,82.311,10.24169632]
[1772938430972,10.21368774,82.395,82.332,10.24169632]
[1772938431877,10.926,82.381,82.332,10.24169632]
[1772938432377,10.21368774,82.381,82.332,10.24169632]
[1772938434676,10.926,82.38,82.332,10.24169632]
[1772938434879,10.21368774,82.395,82.332,10.24169632]
[1772938435780,10.925,82.388,82.336,10.24169632]
[1772938436878,10.925,82.388,82.341,10.24169632]
[1772938437270,10.21368774,82.395,82.341,10.24169632]
[1772938437981,10.21368774,82.419,82.341,10.24169632]
[1772938438872,10.21368774,82.419,82.32,6.87681761]
[1772938438873,10.924,82.4,82.351,10.24169632]
[1772938440385,10.925,82.392,82.351,10.24169632]
[1772938441186,10.923,82.401,82.351,10.24169632]
[1772938441384,10.21368774,82.439,82.351,10.24169632]
[1772938441684,10.921,82.42,82.366,10.24169632]
[1772938441883,10.21368774,82.439,82.366,10.24169632]
[1772938442786,21.13168774,82.439,82.386,10.07033236]
[1772938443789,21.13168774,82.439,82.388,10.07033236]
[1772938444786,10.91700145,82.447,82.39,10.07033236]
[1772938445288,6.86682563,82.47,82.37,6.86682563]
[1772938445289,10.91700145,82.433,82.371,10.07033236]
[1772938446493,10.91700145,82.423,82.371,10.07033236]
[1772938446893,10.91700145,82.423,82.351,10.07033236]
[1772938447587,10.91700145,82.408,82.351,10.07033236]
[1772938448784,10.91700145,82.408,82.36,2.7490189]
[1772938449593,10.91700145,82.408,82.361,10.07033236]
[1772938449793,10.91700145,82.424,82.37,2.7490189]
[1772938450094,2.7490189,82.42,82.37,2.7490189]
[1772938450292,10.91700145,82.419,82.37,2.7490189]
[1772938450593,10.91700145,82.419,82.371,10.07033236]
[1772938451388,10.91700145,82.419,82.38,2.7490189]
[1772938451593,10.92,82.427,82.381,10.07033236]
[1772938456798,10.91700145,82.424,82.368,10.07033236]
[1772938457396,10.91700145,82.411,82.368,10.07033236]
[1772938457997,10.92,82.424,82.368,10.07033236]
[1772938458800,10.92,82.424,82.372,10.07033236]
[1772938459394,10.91700145,82.483,82.372,10.07033236]
[1772938459592,10.91700145,82.483,82.381,10.07033236]
[1772938460902,10.917,82.452,82.395,10.07033236]
[1772938461297,10.91700145,82.453,82.398,10.07033236]
[1772938461494,10.91700145,82.468,82.401,10.07033236]
[1772938462701,10.91700145,82.457,82.401,10.07033236]
[1772938463097,10.91700145,82.457,82.381,10.07033236]
[1772938463797,10.918,82.443,82.384,10.07033236]
[1772938465503,10.91700145,82.45,82.394,10.07033236]
[1772938466500,10.917,82.447,82.394,10.07033236]
[1772938467104,10.91700145,82.446,82.394,10.07033236]
[1772938467498,10.91700145,82.444,82.396,10.07033236]
[1772938468909,10.918,82.442,82.396,10.07033236]
[1772938469607,10.91700145,82.444,82.396,10.07033236]
[1772938472509,10.91700145,82.444,82.399,10.51445491]
[1772938472913,10.917,82.451,82.399,10.51445491]
[1772938473210,11.16300838,82.459,82.402,10.51445491]
[1772938473409,11.16300838,82.473,82.402,10.51445491]
[1772938474712,11.16300838,82.469,82.42,2.74518465]
[1772938474912,10.916,82.459,82.42,2.74518465]
[1772938476004,11.16300838,82.466,82.42,2.74518465]
[1772938477415,11.16300838,82.466,82.421,10.51445491]
[1772938477607,10.915,82.467,82.421,10.51445491]
[1772938477806,11.16300838,82.458,82.41,2.74518465]
[1772938479313,11.16300838,82.445,82.382,10.51445491]
[1772938479618,12.16642484,82.514,82.381,10.51445491]
[1772938479619,11.16300838,82.439,82.381,10.51445491]
[1772938480212,10.92,82.428,82.381,10.51445491]
[1772938482411,11.16300838,82.427,82.381,10.51445491]
[1772938483721,11.16300838,82.424,82.37,2.74518465]
[1772938484919,10.922,82.41,82.37,2.74518465]
[1772938485119,10.922,82.41,82.362,10.51445491]
[1772938485120,11.16300838,82.409,82.362,10.51445491]
[1772938485315,11.16300838,82.393,82.35,2.74518465]
[1772938485517,14.87285991,82.478,82.31,99.50089431]
[1772938485518,11.16300838,82.389,82.34,2.74518465]
[1772938485916,11.16300838,82.389,82.35,2.74518465]
[1772938486112,11.16300838,82.403,82.36,2.74518465]
[1772938487015,11.16300838,82.403,82.361,10.51445491]
[1772938487521,21.832,82.459,82.38,2.74518465]
[1772938487522,11.16300838,82.431,82.38,2.74518465]
[1772938487920,10.921,82.418,82.371,10.51445491]
[1772938488114,22.08400838,82.418,82.371,10.51445491]
[1772938488622,11.16300838,82.415,82.371,10.51445491]
[1772938490718,11.16300838,82.431,82.381,10.51445491]
[1772938491726,11.16300838,82.431,82.38,2.74518465]
[1772938492924,11.16300838,82.429,82.38,2.74518465]
[1772938493828,10.92,82.425,82.38,2.74518465]
[1772938494023,22.08300838,82.425,82.38,2.74518465]
[1772938494224,11.16300838,82.424,82.38,2.74518465]
[1772938495321,10.921,82.418,82.38,2.74518465]
[1772938495724,11.16300838,82.424,82.38,2.74518465]
[1772938496819,11.16300838,82.444,82.381,10.51445491]
[1772938497032,11.16300838,82.479,82.42,13.25963956]
[1772938497219,11.16300838,82.479,82.43,2.74518465]
[1772938498027,11.16300838,82.479,82.44,2.74518465]
[1772938500224,11.16300838,82.479,82.416,10.51445491]
[1772938500225,11.16300838,82.469,82.391,30.01313659]
[1772938500424,11.16300838,82.439,82.39,2.74518465]
[1772938500733,11.16300838,82.439,82.4,2.74518465]
[1772938502428,11.16300838,82.439,82.388,10.51445491]
[1772938502829,10.99828024,82.457,82.392,10.45962219]
[1772938503027,10.99828024,82.476,82.392,10.45962219]
[1772938503235,10.99828024,82.518,82.411,10.45962219]
[1772938503528,10.99828024,82.488,82.422,10.45962219]
[1772938503825,10.99828024,82.488,82.431,10.45962219]
[1772938504730,10.99828024,82.488,82.432,10.919]
[1772938504932,10.99828024,82.488,82.431,10.45962219]
[1772938505824,10.912,82.487,82.431,10.45962219]
[1772938506027,10.99828024,82.519,82.431,10.45962219]
[1772938506226,10.99828024,82.519,82.441,10.45962219]
[1772938506826,21.90628024,82.517,82.45,10.45962219]
[1772938507633,10.909,82.512,82.454,10.916]
[1772938507833,10.99828024,82.511,82.45,10.45962219]
[1772938508229,10.99828024,82.507,82.45,10.45962219]
[1772938509738,10.911,82.493,82.45,10.45962219]
[1772938511138,10.912,82.489,82.43,10.45962219]
[1772938511338,10.99828024,82.488,82.43,10.45962219]
[1772938511936,10.99828024,82.529,82.43,10.45962219]
[1772938512733,10.99828024,82.503,82.447,10.917]
[1772938512939,10.99828024,82.503,82.447,21.37662219]
[1772938513743,10.91,82.499,82.447,21.37662219]
[1772938515041,10.99828024,82.503,82.45,10.45962219]
[1772938516539,10.99828024,82.494,82.45,10.45962219]
[1772938516746,10.99828024,82.494,82.421,10.45962219]
[1772938517744,10.912,82.485,82.431,10.919]
[1772938517946,10.912,82.485,82.432,10.45962219]
[1772938518848,10.912,82.485,82.434,10.45962219]
[1772938519450,21.91028024,82.485,82.434,10.45962219]
[1772938519953,10.913,82.483,82.434,10.45962219]
[1772938520247,21.91128024,82.483,82.434,10.45962219]
[1772938522255,21.91128024,82.481,82.434,10.45962219]
[1772938522453,21.91128024,82.481,82.44,2.74361986]
[1772938522856,10.99828024,82.468,82.42,2.74361986]
[1772938523050,10.99828024,82.468,82.43,2.74361986]
[1772938524155,10.99828024,82.482,82.43,2.74361986]
[1772938524954,10.913,82.477,82.431,10.45962219]
[1772938525662,10.913,82.477,82.44,2.74361986]
[1772938526262,21.90928024,82.493,82.45,2.74361986]
[1772938526460,10.99828024,82.492,82.45,2.74361986]
[1772938527763,10.912,82.49,82.45,2.74361986]
[1772938529860,10.912,82.486,82.441,10.45962219]
[1772938530060,10.912,82.486,82.45,2.74361986]
[1772938534769,22.34279276,82.486,82.45,2.74361986]
[1772938535566,11.43079276,82.485,82.45,2.74361986]
[1772938537672,22.34279276,82.484,82.45,2.74361986]
[1772938537871,22.34279276,82.484,82.441,10.45962219]
[1772938537872,11.43079276,82.483,82.441,10.45962219]
[1772938538867,22.34379276,82.479,82.441,10.45962219]
[1772938539372,2.74361986,82.49,82.44,2.74361986]
[1772938539373,11.43079276,82.475,82.44,2.74361986]
[1772938541772,11.43079276,82.473,82.43,2.74361986]
[1772938541973,11.43079276,82.499,82.44,2.74361986]
[1772938542775,11.43079276,82.481,82.44,2.74361986]
[1772938543373,11.43079276,82.481,82.44,13.99117366]
[1772938544171,11.43079276,82.481,82.45,2.74361986]
[1772938544969,11.43079276,82.481,82.44,13.99117366]
[1772938547181,11.43079276,82.481,82.43,2.74361986]
[1772938548386,11.43079276,82.48,82.44,2.74361986]
[1772938555789,11.43079276,82.505,82.461,11.2475538]
[1772938556290,11.43079276,82.505,82.47,2.74361986]
[1772938556682,11.43079276,82.505,82.461,11.2475538]
[1772938557286,11.43079276,82.518,82.471,11.2475538]
[1772938558889,11.43079276,82.515,82.471,11.2475538]
[1772938559786,11.43079276,82.513,82.471,11.2475538]
[1772938562197,11.22093518,82.529,82.48,2.74361986]
[1772938562393,11.22093518,82.529,82.49,2.74361986]
[1772938562699,11.22093518,82.529,82.48,14.06310494]
[1772938562997,11.5775779,82.527,82.47,14.06310494]
[1772938563890,11.5775779,82.521,82.47,14.06310494]
[1772938564092,11.5775779,82.521,82.426,21.841]
[1772938564093,11.5775779,82.509,82.45,2.74361986]
[1772938564598,11.5775779,82.509,82.451,11.31948508]
[1772938564899,11.5775779,82.529,82.48,2.74361986]
[1772938565499,10.909,82.512,82.48,2.74361986]
[1772938565900,11.5775779,82.529,82.48,14.06310494]
[1772938566497,11.5775779,82.529,82.48,14.06027236]
[1772938566898,10.908,82.521,82.48,14.06027236]
[1772938567500,11.5775779,82.521,82.49,2.74078728]
[1772938567896,11.5775779,82.521,82.427,21.84]
[1772938567897,11.5775779,82.521,82.47,2.74078728]
[1772938568394,11.5775779,82.519,82.47,2.74078728]
[1772938568595,11.5775779,82.519,82.48,2.74078728]
[1772938568793,16.69020423,82.531,82.48,2.74078728]
[1772938568794,16.69020423,82.531,82.481,11.31948508]
[1772938568996,14.31836518,82.53,82.481,11.31948508]
[1772938569404,11.5775779,82.527,82.481,11.31948508]
[1772938570902,11.5775779,82.523,82.481,11.31948508]
[1772938571098,11.5775779,82.523,82.47,2.74078728]
[1772938571404,11.5775779,82.509,82.454,11.31948508]
[1772938571604,11.5775779,82.509,82.46,2.74078728]
[1772938572395,22.4865779,82.507,82.46,2.74078728]
[1772938572598,22.4865779,82.507,82.47,2.74078728]
[1772938574406,22.4865779,82.507,82.46,14.06027236]
[1772938574699,10.91,82.505,82.46,2.74078728]
[1772938574898,11.5775779,82.504,82.45,14.06027236]
[1772938575802,10.91,82.499,82.45,14.06027236]
[1772938576001,11.5775779,82.504,82.45,14.06027236]
[1772938576203,11.5775779,82.504,82.46,2.74078728]
[1772938576402,11.5775779,82.518,82.46,14.06027236]
[1772938577798,10.909,82.508,82.46,14.06027236]
[1772938578205,11.5775779,82.507,82.46,14.06027236]
[1772938578506,16.69020423,82.531,82.451,11.31948508]
[1772938578507,11.5775779,82.501,82.451,11.31948508]